Cogmind - Beta 9.3 @@@ ROGUE MODE // 2019.12.21 @ 18:52:23 // Winter2019/RPGLIKE Player: Spkaet Result: Destroyed by G-47 Trooper with Particle Gun Performance ------------- Evolutions (0) 0 Regions Visited (2) 400 Robots Destroyed (26) 130 Value Destroyed (391) 391 Prototype IDs (0) 0 Alien Tech Used (0) 0 Bonus (0) 0 TOTAL SCORE: 921 Bonus ------- None Cogmind --------- Core Integrity 0/650 Matter 271/300 Energy 250/250 System Corruption 0% Temperature Cool (122) Movement Flying (37) Location -10/Mines Parts ------- > --- POWER (2) -------- Light Ion Engine Light Ion Engine > --- PROPULSION (3) --- Flight Unit Flight Unit > --- UTILITY (1) ------ ECM Suite > --- WEAPON (3) ------- Assault Rifle Welding Torch > --- INVENTORY (1) ---- Protomatter-15 Peak State ------------ > --- POWER ------------ Light Ion Engine Light Ion Engine > --- PROPULSION ------- Flight Unit Flight Unit Flight Unit > --- UTILITY ---------- Seismic Analyzer > --- WEAPON ----------- Small Laser Small Laser Assault Rifle > --- INVENTORY -------- (None) [Rating: 9] Favorites ----------- Power Light Ion Engine Engine Light Ion Engine Propulsion Flight Unit Wheel Wheel Flight Unit Flight Unit Utility Seismic Analyzer Device ECM Suite Processor Seismic Analyzer Weapon Small Laser Energy Gun Small Laser Ballistic Gun Assault Rifle Special Weapon Welding Torch Build | -11 -10 -10 ------- Run | Scr Mat Min Slots Evolved 5 | 4 . 1 Power 1 | 1 . . Propulsion 2 | 1 . 1 Utility . | . . . Weapon 2 | 2 . . Parts Attached 17 | 10 . 7 Power 5 | 4 . 1 Engine 5 | 4 . 1 Core . | . . . Reactor . | . . . Propulsion 5 | 2 . 3 Treads . | . . . Leg . | . . . Wheel 2 | 2 . . Hover . | . . . Flight 3 | . . 3 Utility 2 | 1 . 1 Device 1 | . . 1 Storage . | . . . Processor 1 | 1 . . Hackware . | . . . Protection . | . . . Artifact . | . . . Weapon 5 | 3 . 2 Energy Gun 2 | 2 . . Energy Cannon . | . . . Ballistic Gun 1 | 1 . . Ballistic Cannon . | . . . Launcher . | . . . Special Weapon 2 | . . 2 Impact Weapon . | . . . Slashing Weapon . | . . . Piercing Weapon . | . . . Special Melee Weapon . | . . . Unidentified Prototypes . | . . . Parts Lost 2 | . . 2 Power . | . . . Propulsion 1 | . . 1 Utility . | . . . Weapon 1 | . . 1 Highest Loss Streak 2 | . . 2 Average Slot Usage (%) 94 | . 90 97 Engine 18 | . 15 21 Wheel 11 | . 25 1 Flight 17 | . . 30 Device 3 | . . 6 Processor 7 | . 12 4 Energy Gun 16 | . 25 9 Ballistic Gun 11 | . 12 11 Special Weapon 6 | . . 11 Naked Turns . | . . . Heaviest Build 12 | 12 10 11 Greatest Support 31 | 26 26 31 Greatest Overweight (x) . | . . . Average Overweight (x) . | . . . Largest Inventory Capacity 1 | . 1 1 Average Capacity . | . . 1 Most Carried 1 | . 1 1 Average Carried . | . . . Final Capacity 1 | . 1 1 Final Carried 1 | . . 1 Class Distribution -------------------- 61% | Gunner 33% | Scavenger-Gunner 3% | Scavenger-Mutant Dominant Class ---------------- Gunner | -10/Materials Scavenger-Gunner | -10/Mines Resources | -11 -10 -10 ----------- Run | Scr Mat Min Matter Collected 718 | 381 68 269 Remotely . | . . . Salvage Created 735 | 353 104 278 Parts 52 | 27 15 10 Haulers Intercepted . | . . . Recyclers Shooed 3 | 1 1 1 Parts Field Recycled . | . . . Retrieved Matter . | . . . Parts Self-Destructed . | . . . Prevented . | . . . Kills | -11 -10 -10 ------- Run | Scr Mat Min Combat Hostiles Destroyed 7 | . 2 5 Guns 7 | . 2 5 Classes Destroyed 7 | 3 3 1 Worker 4 | 4 . . Builder 2 | . 2 . Tunneler 10 | 9 . 1 Recycler 2 | 1 . 1 Watcher 1 | . 1 . Swarmer 3 | . . 3 Grunt 4 | . 2 2 Best Kill Streak 4 | 3 4 3 Combat Bots Only 3 | . 2 3 Max Kills in Single Turn 2 | 1 2 1 Gunslinging 1 | . 1 . Exploded . | . . . Melee . | . . . Uniques/NPCs Destroyed . | . . . Combat | -11 -10 -10 -------- Run | Scr Mat Min Damage Taken 834 | . 266 568 Core 659 | . 206 453 Absorbed by Shields . | . . . Redirected to Core 588 | . 206 382 Core Remaining (%) 100 | 100 . . Volleys Fired 137 | 35 40 62 Largest 3 | 3 3 3 Hottest 140 | 100 100 140 Shots Fired 294 | 90 108 96 Gun 288 | 90 108 90 Cannon . | . . . Launcher . | . . . Special 6 | . . 6 Kinetic 129 | 27 40 62 Thermal 165 | 63 68 34 Explosive . | . . . Electromagnetic . | . . . Robot Hit Streak 9 | 5 5 9 Robot Miss Streak 7 | 4 6 7 Penetration Max . | . . . Secondary Targets 1 | . 1 . Max Gunslinging Chain 1 | . 1 . Shots Hit Robots 98 | 35 20 43 Core Hits 38 | 15 10 13 Critical Hits . | . . . Critical Kills . | . . . Critical Parts Destroyed . | . . . Melee Attacks . | . . . Impact . | . . . Slashing . | . . . Piercing . | . . . Sneak Attacks . | . . . Combat Hostiles . | . . . Follow-up Attacks . | . . . Damage Inflicted 964 | 383 181 400 Guns 953 | 383 173 397 Cannons . | . . . Explosions . | . . . Melee . | . . . Ramming 8 | . 8 . Kinetic 515 | 132 62 321 Thermal 441 | 251 111 79 Explosive . | . . . Electromagnetic . | . . . Impact . | . . . Slashing . | . . . Piercing . | . . . Highest Corruption . | . . . Average Corruption . | . . . Corruption Purged . | . . . Overload Shots . | . . . Overflow Damage . | . . . Projectiles . | . . . Explosions . | . . . Melee . | . . . Knockbacks . | . . . Impact . | . . . Kinetic . | . . . Secondary . | . . . Self-Inflicted Damage 154 | . 154 . Shots 3 | . 3 . Rammed 3 | . 3 . Targets Rammed 3 | . 3 . Kicked . | . . . Crushed . | . . . Highest Temperature 408 | 408 357 309 Average Temperature 120 | 133 150 97 Received Heat Transfer 336 | . 66 270 Effects 24 | 8 11 5 Shutdowns 4 | 3 1 . Energy Bleed 5 | 1 3 1 Interference 12 | 3 5 4 Matter Decay 1 | . 1 . Short Circuit 2 | 1 1 . Siege Activations . | . . . Robots Corrupted . | . . . Combat Hostiles . | . . . Parts Fried . | . . . Impact Corruptions . | . . . Robots Melted . | . . . Combat Hostiles . | . . . Parts Melted 2 | 1 . 1 Heat Transferred 1025 | 575 250 200 Parts Sabotaged . | . . . Parts Stolen . | . . . Parts Stripped . | . . . Power Chain Reactions 1 | . 1 . Missiles Intercepted . | . . . Alert | -11 -10 -10 ------- Run | Scr Mat Min Peak Influence 229 | 70 217 229 Average Influence 122 | 30 164 165 Maximum Alert Level 1 | . 1 1 Low Security (%) 84 | 100 57 92 Level 1 15 | . 42 7 Level 2 . | . . . Level 3 . | . . . Level 4 . | . . . Level 5 . | . . . High Security . | . . . Max Security . | . . . Squads Dispatched 1 | . 1 . Investigation . | . . . Extermination . | . . . Reinforcement 1 | . 1 . Assault . | . . . Garrison . | . . . Intercept . | . . . Construction Impeded . | . . . Haulers Reinforced . | . . . Stealth | -11 -10 -10 --------- Run | Scr Mat Min Distress Signals 1 | . 1 . Communications Jammed . | . . . Distress Signals . | . . . Times Spotted 11 | . 6 5 Peak Tracking Total 4 | . 4 2 Tactical Retreats . | . . . Traps | -11 -10 -10 ------- Run | Scr Mat Min Traps Triggered . | . . . Indirectly . | . . . Trap Hack Attempts . | . . . Triggered . | . . . Disarmed . | . . . Reprogrammed . | . . . Reused . | . . . Traps Extracted . | . . . Installed . | . . . Triggered . | . . . Machines | -11 -10 -10 ---------- Run | Scr Mat Min Machines Disabled 10 | . 6 4 Max in Single Turn 2 | . 2 1 Machines Sabotaged . | . . . Garrisons Compromised . | . . . Overloaded Fab Kills . | . . . Fab Network Shutdowns . | . . . Hacking | -11 -10 -10 --------- Run | Scr Mat Min Machines Accessed 2 | . 1 1 Terminals 1 | . . 1 Fabricators . | . . . Repair Stations . | . . . Recycling Units 1 | . 1 . Scanalyzers . | . . . Garrison Access . | . . . Total Hacks 5 | . 2 3 Successful 5 | . 2 3 Failed . | . . . Catastrophic . | . . . Database Lockouts . | . . . Manual . | . . . Terminals 3 | . . 3 Fabricators . | . . . Repair Stations . | . . . Recycling Units 2 | . 2 . Scanalyzers . | . . . Garrison Access . | . . . Terminal Hacks 3 | . . 3 Record 2 | . . 2 Alert Level 1 | . . 1 Fabricator Hacks . | . . . Repair Station Hacks . | . . . Recycling Unit Hacks 2 | . 2 . Process 1 | . 1 . Report Inventory 1 | . 1 . Scanalyzer . | . . . Garrison Access Hacks . | . . . Unauthorized Hacks . | . . . Terminals . | . . . Fabricators . | . . . Repair Stations . | . . . Recycling Units . | . . . Scanalyzers . | . . . Garrison Access . | . . . Data Cores Recovered . | . . . Used . | . . . Hacking Detections 2 | . 1 1 Full Trace Events . | . . . Feedback Events . | . . . Feedback Blocked . | . . . Robot Schematics Acquired . | . . . Robots Built . | . . . Matter . | . . . Time . | . . . Total Robot Build Rating . | . . . Part Schematics Acquired . | . . . Parts Built . | . . . Matter . | . . . Time . | . . . Total Part Build Rating . | . . . Parts Repaired . | . . . Time . | . . . Parts Recycled . | . . . Recycled Matter 146 | . 146 . Retrieved Matter . | . . . Retrieved Components . | . . . Parts Scanalyzed . | . . . Part Schematics Acquired . | . . . Parts Damaged . | . . . Bothacking | -11 -10 -10 ------------ Run | Scr Mat Min Used RIF Installer . | . . . Robots Hacked . | . . . Non-combat . | . . . Combat . | . . . Robot Hacks Applied . | . . . Relay Couplers Released . | . . . Robots Rewired . | . . . Allies Hacked . | . . . Hacks Repelled . | . . . Allies | -11 -10 -10 -------- Run | Scr Mat Min Total Allies . | . . . Largest Group . | . . . Highest-Rated Group . | . . . Highest-Rated Ally . | . . . Total Orders . | . . . Ally Attacks . | . . . Total Damage . | . . . Kills . | . . . Allies Corrupted . | . . . Allies Melted . | . . . Intel | -11 -10 -10 ------- Run | Scr Mat Min Robot Analysis Total . | . . . Derelict Logs Recovered 2 | . . 2 Drone Launches . | . . . Drone Recoveries . | . . . Exploration | -11 -10 -10 ------------- Run | Scr Mat Min Turns Passed 1179 | 376 347 456 Spaces Moved 1295 | 236 233 826 Core 23 | 23 . . Treads . | . . . Legs . | . . . Wheels 452 | 213 233 6 Hover . | . . . Flight 820 | . . 820 Fastest Speed 34 | 50 90 34 Average Speed 53 | 85 90 34 Slowest Speed 90 | 90 90 90 Overloaded Moves . | . . . Propulsion Burnouts . | . . . Robots Hopped 2 | . . 2 Cave-ins Triggered . | . . . Exploration Rate (%) 47 | 9 36 96 Regions Visited 2 Branch Regions 1 Pre-discovered Areas 1 | . . 1 Known Exits Taken . | . . . Unknown Exits Taken 2 | 1 1 . Scrap Searched 2 | . . 2 Spaces Dug . | . . . Terrain Destroyed 40 | . 39 1 Melee . | . . . Projectile 1 | . . 1 AOE 39 | . 39 . Actions | -11 -10 -10 --------- Run | Scr Mat Min Total 1531 | 335 288 908 Wait 68 | 53 10 5 Move 1289 | 235 232 822 Hop 2 | . . 2 Pick Up 6 | . 1 5 Fast Attach 13 | 10 . 3 Attach 4 | . . 4 Detach . | . . . Swap . | . . . Drop 9 | 2 2 5 Fire 137 | 35 40 62 Melee . | . . . Ram 3 | . 3 . Kick . | . . . Crush . | . . . Escape Stasis . | . . . Rewire . | . . . Trap . | . . . Miscellaneous . | . . . Route ------- -11/Scrapyard -10/Materials (discovered 3 exits: [*Mat] / *Min x2) -10/Mines (discovered 2 exits: [*Mat x2]) History --------- Turn | Location | Event 1 | -11/Scrapyard | Upgraded with Power slot (x1) 1 | -11/Scrapyard | Upgraded with Propulsion slot (x1) 1 | -11/Scrapyard | Upgraded with Weapon slot (x2) 7 | -11/Scrapyard | Discovered new exit (range 15) 377 | -11/Scrapyard | Entered Materials 378 | -10/Materials | Build established: Gunner 469 | -10/Materials | Discovered new exit (range 12) 682 | -10/Materials | Discovered new exit (range 11) 692 | -10/Materials | Discovered new exit (range 15) 724 | -10/Materials | Entered Mines 734 | -10/Mines | Reached level 2 745 | -10/Mines | Upgraded with Propulsion slot (x1) 857 | -10/Mines | Discovered new exit (range 6) 869 | -10/Mines | Learned location of Zion (-7) 990 | -10/Mines | Core integrity fell below 50% 1068 | -10/Mines | Discovered new exit (range 8) 1142 | -10/Mines | Core integrity fell below 20% 1151 | -10/Mines | Build established: Scavenger-Gunner 1180 | -10/Mines | Destroyed by G-47 Trooper with Particle Gun Last Messages --------------- 00917_ Found Mining Laser. 00918_ Dropped Sml. Laser. 00918_ Acquired Welding Torch. 00920_ Dropped Sml. Laser. 00921_ Acquired Mining Laser. 00957_ K-01 Serf collects debris. 00992_ G-34 Mercenary destroyed. 00995_ Acquired 53 matter. 00996_ Acquired 13 matter. 01030_ A derelict is hurriedly installing traps. 01032_ J5-KDS(g): "Hehe, this'll put a wrench in their mining defense operations..." 01032_ J5-KDS(g) slips into the shadows. 01068_ EXIT=FOUND 01089_ Seismic Survey Station disabled. 01147_ G-34 Mercenary destroyed. 01150_ Acquired 54 matter. 01159_ Mining Laser destroyed. 01171_ Seismic Survey Station disabled. 01174_ Flight Unit destroyed. Map ----- +----------------------------------------------------+ | | | | | | | | | | | | | | | | | | | | | | | | | | | | | | | | | ??????????????????????????????????? | | ??????????????????????????????????? | | ??????????????????????????????????? | | ????################???????????#### | | ????# #???????????# | | ????# "" " """ #???????????# ## | | ????# """ """ """ ####????????# #? | | ????# "" """ #????????# #? | | ????# = g ## #????????# #? | | ????# "" @ "" """ ## #????????# #? | | ????# """ """ """ ########## ## | | ????# """ """ """ ## | | ????# ## | | ????############################## | | ??????????????# ####????????# | | ??????????????# # # #????????## | | ??????????????# # # #?????????# | | ??????????????# # # #?????????? | | ??????????????# ^ ## # #?????????? | | ??????????????# # #?????????? | | ??????????????### # ########### | | ????????????????###### | | ????????????#####????# | | ???????????## ##???############## | | ??????###### ##???????????????? | | ?????## ##??????????????? | | ?????# ####?????????### | | ??????# """ ##???????## | | ???????# """ ##??????# | | ????????# """ ####???# | | ????????# #????# | | ????????# ## #?????# | | ????????## ## ###### ####### | | ?????????# ######????# # ## | +----------------------------------------------------+ Best States ------------- Heat Dissipation 25 Energy Generation 15 Energy Capacity 275 Matter Stores 300 Matter Capacity 300 Sight Range 16 Terrain Scan Density 60 ECM Strength 1 Evasion (%) 63 Item Schematics ----------------- None Robot Schematics ------------------ None Fabricated ------------ Nothing Alien Tech Used ----------------- None Achievements -------------- None Challenges ------------ None RPGLIKE | -11 -10 -10 --------- Run | Scr Mat Min Levels Raised 1 | . . 1 XP Earned 5085 | 3000 735 1350 XP Spent 4500 | 2300 700 1500 Upgrades 13 | 4 4 5 Power Slot 1 | 1 . . Propulsion Slot 2 | 1 . 1 Weapon Slot 2 | 2 . . Core Integrity 1 | . 1 . Energy Storage 2 | . 2 . Mass Support 1 | . . 1 Inventory Capacity 1 | . 1 . KI Damage % 1 | . . 1 TH Damage % 1 | . . 1 EX Damage % 1 | . . 1 Protomatter Created 62 | . 47 15 Protomatter Decayed 35 | . 35 . Game ------ Seed MappingExplosiveGenerator Manual? 0 Play Time 00:21:03 Cumulative 10.6 hours Start 2019.12.21 @ 18:34:27 End 2019.12.21 @ 18:52:23 Sessions 1 Manual Loads 0 Difficulty Rogue Special Mode Winter2019/RPGLIKE Game No. 20 Rogue 20 Adventurer 0 Explorer 0 Win Type - Total 0 Types 0/0/0/0/0/0/0 Lore% 7 Gallery% 14 Achievement% 11 Wizard Run 0 Options --------- ASCII 0 Keyboard 0 Movement Numpad Keybinds 0 Fullscreen 1 Font 12/Smallcaps Map View 83x54 Tactical HUD 1 Map Filters NONE Filters NONE Steam 1 RUN: c5918b09-266f-4921-b641-8fe749159083